bitfinex/quotes_BTCUSD_20241013
["timestamp","ask_amount","ask_price","bid_price","bid_amount"]
[1728794222024,1.06915831,62908.0,62907.0,0.2191853]
[1728794222245,1.06915831,62908.0,62907.0,0.2171853]
[1728794222935,1.06915831,62908.0,62907.0,0.2188253]
[1728794223161,1.07015831,62908.0,62907.0,0.2238253]
[1728794227130,1.04526248,62908.0,62907.0,0.2238253]
[1728794227591,1.04526248,62908.0,62907.0,0.22382524]
[1728794228941,1.04526248,62908.0,62907.0,0.49470041]
[1728794229171,1.04526248,62908.0,62907.0,0.70010041]
[1728794229395,1.04526248,62908.0,62907.0,0.80010041]
[1728794229622,1.01451434,62908.0,62907.0,0.80010041]
[1728794229855,1.01451434,62908.0,62907.0,0.87840041]
[1728794230546,1.01351434,62908.0,62907.0,0.87340041]
[1728794231209,1.01351434,62908.0,62907.0,0.87040041]
[1728794231210,1.01251434,62908.0,62907.0,0.87040041]
[1728794231445,1.01351434,62908.0,62907.0,0.88139987]
[1728794231658,1.03840786,62908.0,62907.0,0.88139987]
[1728794231884,1.03840786,62908.0,62907.0,0.87039987]
[1728794231885,1.03740786,62908.0,62907.0,0.87039987]
[1728794232536,1.03840786,62908.0,62907.0,0.88139987]
[1728794232778,1.03940786,62908.0,62907.0,0.89239987]
[1728794232994,1.03840786,62908.0,62907.0,0.88139987]
[1728794233671,1.03940786,62908.0,62907.0,0.89439987]
[1728794234116,0.02689352,62908.0,62907.0,0.89439987]
[1728794235203,0.02689352,62908.0,62907.0,0.88942287]
[1728794235431,0.02689352,62908.0,62907.0,0.89439956]
[1728794237162,0.002,62908.0,62907.0,0.89439956]
[1728794237396,0.002,62908.0,62907.0,0.9014834]
[1728794239248,0.002,62908.0,62907.0,0.90148336]
[1728794239928,0.002,62908.0,62907.0,0.95100301]
[1728794240179,0.002,62908.0,62907.0,0.90148336]
[1728794243122,0.002,62908.0,62907.0,0.90148337]
[1728794247068,0.002,62908.0,62907.0,0.90148335]
[1728794248130,0.00282,62908.0,62907.0,0.90148335]
[1728794251127,0.00282,62908.0,62907.0,0.95099372]
[1728794251648,0.00282,62908.0,62907.0,0.90148335]
[1728794252143,0.00282,62908.0,62907.0,0.95099612]
[1728794252335,0.00282,62908.0,62907.0,0.90148335]
[1728794252610,0.00282,62908.0,62907.0,0.95099923]
[1728794253089,0.00282,62908.0,62907.0,0.94602259]
[1728794253317,0.00282,62908.0,62907.0,0.95099923]
[1728794253528,0.00282,62908.0,62907.0,0.87269923]
[1728794254092,0.00282,62908.0,62907.0,0.86772259]
[1728794255001,0.00282,62908.0,62907.0,0.87269924]
[1728794255738,0.00282,62908.0,62907.0,0.87269925]
[1728794256440,0.00282,62908.0,62907.0,0.87269924]
[1728794258569,0.00282,62908.0,62907.0,0.69029924]
[1728794259514,0.03,62909.0,62907.0,0.69029924]
[1728794259515,0.03,62909.0,62908.0,0.281962]
[1728794259782,0.03007,62909.0,62908.0,0.44816266]
[1728794260301,0.03007,62909.0,62908.0,0.44816267]
[1728794260626,0.02298616,62909.0,62908.0,0.44816267]
[1728794261990,0.02398616,62909.0,62908.0,0.46116267]
[1728794262209,0.02398616,62909.0,62908.0,0.47316267]
[1728794262443,0.02398616,62909.0,62908.0,0.52274497]
[1728794270619,1.01251434,62912.0,62911.0,0.281954]
[1728794270849,1.01251434,62912.0,62911.0,0.56006584]
[1728794271075,1.09561434,62912.0,62911.0,0.56006584]
[1728794271542,1.09561434,62912.0,62911.0,0.55508918]
[1728794271779,1.09561434,62912.0,62911.0,0.56006586]
[1728794272027,1.09561434,62912.0,62911.0,0.56806586]
[1728794272949,1.09661434,62912.0,62911.0,0.57806586]
[1728794274935,1.09661434,62912.0,62911.0,0.57806591]
[1728794277936,1.09661434,62912.0,62911.0,0.58709935]
[1728794279196,1.09661434,62912.0,62911.0,0.58212262]
[1728794280517,1.14425676,62912.0,62911.0,0.63175605]
[1728794281954,1.14438348,62912.0,62911.0,0.63175605]
[1728794284438,1.09661434,62912.0,62911.0,0.63175605]
[1728794285279,1.09743434,62912.0,62911.0,0.63673268]
[1728794289205,1.01433434,62912.0,62911.0,0.63673278]
[1728794294189,1.01433434,62912.0,62911.0,0.63175605]
[1728794295785,1.01433434,62912.0,62911.0,0.62375605]
[1728794295993,1.01433434,62912.0,62911.0,0.61375605]
[1728794295994,1.01333434,62912.0,62911.0,0.61375605]
[1728794296213,1.01333434,62912.0,62911.0,0.63273241]
[1728794296433,1.01333434,62912.0,62911.0,0.64673241]
[1728794297303,1.01333434,62912.0,62911.0,0.64175605]
[1728794299783,1.01333434,62912.0,62911.0,0.64673248]
[1728794303346,1.01333434,62912.0,62911.0,0.64175605]
[1728794304243,1.01333434,62912.0,62911.0,0.64673247]
[1728794304955,1.29273434,62912.0,62911.0,0.5348213]
[1728794305203,1.29273434,62912.0,62911.0,0.52984488]
[1728794306474,1.29273434,62912.0,62911.0,0.53482148]
[1728794308081,1.29273434,62912.0,62911.0,0.52984488]
[1728794308359,1.29273434,62912.0,62911.0,0.56668147]
[1728794308848,1.29273434,62912.0,62911.0,0.56170488]
[1728794309095,1.29273434,62912.0,62911.0,0.5666815]
[1728794310285,1.29273434,62912.0,62911.0,0.56170488]
[1728794311221,1.29273434,62912.0,62911.0,0.56668144]
[1728794313312,1.29273434,62912.0,62911.0,0.56170488]
[1728794314481,1.29273434,62912.0,62911.0,0.56668144]
[1728794322677,1.29273434,62912.0,62911.0,0.56170488]
[1728794322906,1.29273434,62912.0,62911.0,0.56668149]
[1728794324769,1.29273434,62912.0,62911.0,0.54368149]
[1728794326623,1.29273434,62912.0,62911.0,0.54368151]
[1728794330543,1.29273434,62912.0,62911.0,0.53464807]
[1728794331018,1.29273434,62912.0,62911.0,0.52967144]
[1728794331261,1.29273434,62912.0,62911.0,0.53464807]
[1728794332485,1.29273434,62912.0,62911.0,0.50278807]
[1728794332959,1.29273434,62912.0,62911.0,0.53465807]
[1728794334402,1.29273434,62912.0,62911.0,0.52968144]
[1728794335388,1.29273434,62912.0,62911.0,0.37072744]
[1728794335629,1.34047835,62912.0,62911.0,0.32109401]
[1728794335859,1.34047835,62912.0,62911.0,0.32607088]
[1728794336098,1.34247835,62912.0,62911.0,0.32607088]
[1728794336336,1.34247835,62912.0,62911.0,0.32109401]
[1728794337506,1.34247835,62912.0,62911.0,0.28922401]
[1728794337732,1.34047835,62912.0,62911.0,0.28922401]
[1728794337957,1.34047835,62912.0,62911.0,0.32109401]
[1728794338185,1.34047265,62912.0,62911.0,0.32109401]
[1728794338419,1.34047265,62912.0,62911.0,0.30709401]
[1728794338664,1.34047265,62912.0,62911.0,0.32009401]
[1728794338899,1.34047265,62912.0,62911.0,0.30609401]
[1728794339138,1.34047265,62912.0,62911.0,0.29309401]
[1728794339375,1.34047265,62912.0,62911.0,0.31809401]
[1728794339613,1.34047265,62912.0,62911.0,0.30409401]
[1728794339847,1.34047265,62912.0,62911.0,0.31609401]
[1728794340590,1.34047265,62912.0,62911.0,0.47504801]
[1728794342660,1.34086265,62912.0,62911.0,0.47504801]
[1728794343106,1.34086265,62912.0,62911.0,0.44317801]
[1728794343323,1.34086265,62912.0,62911.0,0.47504801]
[1728794344775,1.34086265,62912.0,62911.0,0.44317801]
[1728794345471,1.34086265,62912.0,62911.0,0.47504801]
[1728794348473,1.34086265,62912.0,62911.0,0.44317801]
[1728794348941,1.29312434,62912.0,62911.0,0.47504801]
[1728794351971,1.29312434,62912.0,62911.0,0.49804801]
[1728794351972,1.01372434,62912.0,62911.0,0.49804801]
[1728794358014,1.01372434,62912.0,62911.0,0.46617801]
[1728794358238,1.01372434,62912.0,62911.0,0.49804801]
[1728794358917,1.01372434,62912.0,62911.0,0.54761028]
[1728794364605,0.00121,62912.0,62911.0,0.54761028]
[1728794367164,0.00121,62912.0,62911.0,0.51574028]
[1728794367407,0.00121,62912.0,62911.0,0.54761028]
[1728794370288,0.00121,62912.0,62911.0,0.51574028]
[1728794370533,0.00121,62912.0,62911.0,0.54761028]
[1728794371267,0.00121,62912.0,62911.0,0.51574028]
[1728794371509,0.00121,62912.0,62911.0,0.54761028]
[1728794374648,0.00121,62912.0,62911.0,0.49804801]
[1728794377012,0.00121,62912.0,62911.0,0.5475595]
[1728794377245,0.00121,62912.0,62911.0,0.49804801]
[1728794377719,0.00121,62912.0,62911.0,0.54756231]
[1728794378181,0.00121,62912.0,62911.0,0.49804801]
[1728794378639,0.00121,62912.0,62911.0,0.54756492]
[1728794382202,1.01372434,62912.0,62911.0,0.54756492]
[1728794394676,1.01372434,62912.0,62911.0,0.55254136]
[1728794395741,1.01372434,62912.0,62911.0,0.54756492]
[1728794396915,1.28742434,62912.0,62911.0,0.55254152]
[1728794397118,1.28742434,62912.0,62911.0,0.50302461]
[1728794400548,1.28742434,62912.0,62911.0,0.50302486]
[1728794401013,1.28742434,62912.0,62911.0,0.32107086]
[1728794401471,1.49410373,62912.0,62911.0,0.22107086]
[1728794401699,1.44637634,62912.0,62911.0,0.22107086]
[1728794401951,1.44837634,62912.0,62911.0,0.22107086]
[1728794402383,1.71997184,62912.0,62911.0,0.22107086]
[1728794403306,1.62453522,62912.0,62911.0,0.22107086]
[1728794403780,1.62453522,62912.0,62911.0,0.05984685]
[1728794404250,1.44837634,62912.0,62911.0,0.02797685]
[1728794404968,1.44637634,62912.0,62911.0,0.02797685]
[1728794405200,1.51792486,62912.0,62911.0,0.02797685]
[1728794406865,1.51992486,62912.0,62911.0,0.02797685]
[1728794407358,1.44837634,62912.0,62911.0,0.02797685]
[1728794407599,1.44837634,62912.0,62911.0,0.01597685]
[1728794408025,1.44837634,62912.0,62911.0,0.01297685]
[1728794408696,1.44837634,62912.0,62911.0,0.01997685]
[1728794409378,1.49605648,62912.0,62911.0,0.01997685]
[1728794410505,1.49405648,62912.0,62911.0,0.01997685]
[1728794410936,1.49405648,62912.0,62911.0,0.0199772]
[1728794413003,1.49404882,62912.0,62911.0,0.0199772]
[1728794413206,1.49352152,62912.0,62911.0,0.0199772]
[1728794413635,1.44584904,62912.0,62911.0,0.0199772]
[1728794413858,1.49352152,62912.0,62911.0,0.0199772]
[1728794414342,1.49352152,62912.0,62911.0,0.01997719]
[1728794415244,1.44584904,62912.0,62911.0,0.01997719]
[1728794415489,1.44784904,62912.0,62911.0,0.01997719]
[1728794417021,1.44584904,62912.0,62911.0,0.01997719]
[1728794419728,1.49351755,62912.0,62911.0,0.01997719]
[1728794421512,1.49551755,62912.0,62911.0,0.01997719]
[1728794422612,1.44784904,62912.0,62911.0,0.01997719]
[1728794423277,1.49551755,62912.0,62911.0,0.01997719]
[1728794424375,1.49551755,62912.0,62911.0,0.02161719]
[1728794425285,1.74072433,62912.0,62911.0,0.02161719]
[1728794425732,1.74072433,62912.0,62911.0,0.01664]
[1728794426209,1.74072433,62912.0,62911.0,0.00164]
[1728794426424,1.74272433,62912.0,62911.0,0.00164]
[1728794426922,0.160957,62910.0,62909.0,0.00164]
[1728794427138,0.60572112,62910.0,62909.0,0.00164]
[1728794427582,0.434757,62910.0,62909.0,0.00164]
[1728794427794,0.61069839,62910.0,62909.0,0.00164]
[1728794428221,0.61069839,62910.0,62909.0,0.00264]
[1728794429797,1.62321273,62910.0,62909.0,0.00264]
[1728794430696,1.74232109,62910.0,62909.0,0.00264]
[1728794432245,1.62321273,62910.0,62909.0,0.00264]
[1728794436954,1.74223633,62910.0,62909.0,0.00264]
[1728794438715,1.62313375,62910.0,62909.0,0.00264]
[1728794439349,1.74224636,62910.0,62909.0,0.00264]
[1728794439567,1.62313375,62910.0,62909.0,0.00264]
[1728794441896,1.62319813,62910.0,62909.0,0.00264]
[1728794443607,1.62319813,62910.0,62909.0,0.00164]
[1728794444560,1.62519813,62910.0,62909.0,0.00164]
[1728794445005,1.62319813,62910.0,62909.0,0.00164]
[1728794445270,1.62519813,62910.0,62909.0,0.00164]
[1728794445499,1.62619813,62910.0,62909.0,0.00164]
[1728794445715,1.62519813,62910.0,62909.0,0.00164]
[1728794446034,1.62619813,62910.0,62909.0,0.00164]
[1728794446880,1.6262452,62910.0,62909.0,0.00164]
[1728794449948,0.61373086,62910.0,62909.0,0.00164]
[1728794450400,0.75674454,62910.0,62909.0,0.00164]
[1728794451687,0.75677492,62910.0,62909.0,0.00164]
[1728794462459,0.61374762,62910.0,62909.0,0.00164]
[1728794462673,0.75681856,62910.0,62909.0,0.00164]
[1728794463316,0.61374762,62910.0,62909.0,0.00164]
[1728794465359,1.16385888,62898.0,62895.0,0.1]
[1728794465825,1.16385888,62898.0,62897.0,0.00497827]
[1728794466525,1.16385888,62898.0,62897.0,0.02090605]
[1728794466757,1.16485888,62898.0,62897.0,0.02090605]
[1728794467200,1.16585888,62898.0,62897.0,0.04190605]
[1728794469115,1.16585888,62898.0,62897.0,0.03692778]
[1728794469357,1.16585888,62898.0,62897.0,0.04190605]
[1728794470031,1.00687188,62898.0,62897.0,0.33500006]
[1728794470267,1.00687188,62898.0,62897.0,0.49399006]
[1728794472977,1.0546036,62898.0,62897.0,0.49399006]
[1728794475293,1.00687188,62898.0,62897.0,0.49399006]
[1728794475514,1.07851414,62898.0,62897.0,0.49399006]
[1728794475727,1.00687188,62898.0,62897.0,0.60590123]
[1728794476366,1.05463145,62898.0,62897.0,0.60590123]
[1728794477432,1.05463145,62898.0,62897.0,0.61511552]
[1728794477949,1.07851414,62898.0,62897.0,0.61511552]
[1728794480638,1.00687188,62898.0,62897.0,0.61511552]
[1728794481479,1.00687188,62898.0,62897.0,0.61675552]
[1728794481715,1.00769188,62898.0,62897.0,0.61675552]
[1728794484039,1.00769188,62898.0,62897.0,0.61675526]
[1728794491714,1.00769188,62898.0,62897.0,0.61675527]
[1728794493073,1.00769188,62898.0,62897.0,0.45776527]
[1728794494008,1.00769188,62898.0,62897.0,0.61675527]
[1728794496839,1.00769188,62898.0,62897.0,0.45776527]
[1728794497521,1.00769188,62898.0,62897.0,0.61675527]
[1728794497969,1.00769188,62898.0,62897.0,0.3458541]
[1728794498415,1.05545383,62898.0,62897.0,0.61675527]
[1728794499336,1.05545383,62898.0,62897.0,0.5048441]
[1728794499568,1.05545296,62898.0,62897.0,0.5048441]
[1728794500718,1.05545296,62898.0,62897.0,0.50484404]
[1728794501806,1.05545296,62898.0,62897.0,0.49562975]
[1728794503269,1.00769188,62898.0,62897.0,0.49562975]
[1728794503453,1.05545371,62898.0,62897.0,0.33663975]
[1728794503637,1.05545371,62898.0,62897.0,0.3366398]
[1728794503852,1.0793335,62898.0,62897.0,0.3366398]
[1728794504269,1.0793335,62898.0,62897.0,0.4956298]
[1728794504511,1.07933675,62898.0,62897.0,0.49562989]
[1728794505266,1.05545453,62898.0,62897.0,0.51862989]
[1728794505471,1.00769188,62898.0,62897.0,0.68015268]
[1728794505667,1.00769188,62898.0,62897.0,0.86445268]
[1728794505870,1.00769188,62898.0,62897.0,0.94015268]
[1728794506495,1.00569188,62898.0,62897.0,0.92915268]
[1728794506671,1.00569188,62898.0,62897.0,0.91915268]
[1728794506870,1.00669188,62898.0,62897.0,0.94315268]
[1728794507081,1.00569188,62898.0,62897.0,0.92915268]
[1728794507291,1.00669188,62898.0,62897.0,0.94315268]
[1728794507511,1.00669188,62898.0,62897.0,0.93315268]
[1728794507750,1.00669188,62898.0,62897.0,0.94715268]
[1728794510958,1.00669188,62898.0,62897.0,0.87145268]
[1728794511633,1.00669188,62898.0,62897.0,0.87145209]
[1728794518364,1.00669188,62898.0,62897.0,0.82184047]
[1728794519239,1.00669188,62898.0,62897.0,0.87139557]
[1728794524582,0.00182,62898.0,62897.0,0.87139557]
[1728794525835,0.00182,62898.0,62897.0,0.68211806]
[1728794526047,0.00182,62898.0,62897.0,0.68709551]
[1728794526256,0.00182,62898.0,62897.0,0.68211806]
[1728794526462,0.00182,62898.0,62897.0,0.68709551]
[1728794529490,0.00182,62898.0,62897.0,0.68211806]
[1728794529690,0.00182,62898.0,62897.0,0.6870955]
[1728794533398,0.00182,62898.0,62897.0,0.68709534]
[1728794540491,0.00182,62898.0,62897.0,0.68211806]
[1728794540692,0.00182,62898.0,62897.0,0.68709541]
[1728794544095,0.00182,62898.0,62897.0,0.68211806]
[1728794544321,0.00182,62898.0,62897.0,0.68709541]
[1728794549066,0.1826,62900.0,62899.0,0.290855]
[1728794549274,0.1826,62900.0,62899.0,0.52961146]
[1728794550330,0.1826,62900.0,62899.0,0.54361146]
[1728794550542,0.1826,62900.0,62899.0,0.55761146]
[1728794553573,0.02,62901.0,62900.0,0.123]
[1728794553784,0.02,62901.0,62900.0,0.64151963]
[1728794554425,0.0448983,62901.0,62900.0,0.64151963]
[1728794555081,0.0448983,62901.0,62900.0,0.65551963]
[1728794555313,0.0448983,62901.0,62900.0,0.66951963]
[1728794557366,0.0448983,62901.0,62900.0,0.66454228]
[1728794557798,1.00487188,62902.0,62900.0,0.50556028]
[1728794558010,1.00487188,62902.0,62901.0,0.52462811]
[1728794559050,1.00487188,62902.0,62901.0,0.53862811]
[1728794559884,1.00487188,62902.0,62901.0,0.55262811]
[1728794560107,1.00487188,62902.0,62901.0,0.55760545]
[1728794560939,1.02976995,62902.0,62901.0,0.55760545]
[1728794565077,1.02976995,62902.0,62901.0,0.55760544]
[1728794568020,1.00487188,62902.0,62901.0,0.55760544]
[1728794571228,1.02976982,62902.0,62901.0,0.55760544]
[1728794574336,1.02976982,62902.0,62901.0,0.66951661]
[1728794575536,1.03058982,62902.0,62901.0,0.66951661]
[1728794575743,1.03058982,62902.0,62901.0,0.66453928]
[1728794578090,1.00569188,62902.0,62901.0,0.66453928]
[1728794581248,1.0305898,62902.0,62901.0,0.66453928]
[1728794586788,1.00569188,62902.0,62901.0,0.66453928]
[1728794591353,1.03059019,62902.0,62901.0,0.66453928]
[1728794592854,1.03059019,62902.0,62901.0,0.66951661]
[1728794597402,1.00569188,62902.0,62901.0,0.66951661]
[1728794598374,1.00569188,62902.0,62901.0,0.66453928]
[1728794598613,1.00569188,62902.0,62901.0,0.66951659]
[1728794603418,0.2026,62903.0,62902.0,0.190847]
[1728794603419,0.02,62903.0,62902.0,0.190847]
[1728794603648,0.24586851,62909.0,62908.0,0.313832]
[1728794603878,0.24586851,62909.0,62908.0,0.58696718]
[1728794604098,0.02489618,62910.0,62908.0,0.58696718]
[1728794604099,0.02489618,62910.0,62909.0,0.313829]
[1728794604333,0.02489618,62910.0,62909.0,0.52459168]
[1728794604550,0.02489618,62910.0,62909.0,0.47505301]
[1728794605727,1.15295607,62920.0,62919.0,0.158934]
[1728794605943,1.15295607,62920.0,62919.0,0.37502801]
[1728794606168,1.15295607,62920.0,62919.0,0.48693918]
[1728794606631,1.15295607,62920.0,62919.0,0.59885035]
[1728794606632,0.195,62920.0,62919.0,0.59885035]
[1728794606843,0.95795607,62922.0,62920.0,0.213801]
[1728794607072,0.95795607,62922.0,62920.0,0.37502501]
[1728794607302,0.95795607,62922.0,62920.0,0.48693618]
[1728794607524,0.95795607,62922.0,62920.0,0.37502501]
[1728794608645,0.07582,62921.0,62920.0,0.37502501]
[1728794609076,0.07582,62921.0,62920.0,0.38502501]
[1728794609534,0.07582,62921.0,62920.0,0.39402501]
[1728794615572,0.07582,62921.0,62920.0,0.48293618]
[1728794615573,0.00082,62921.0,62920.0,0.48293618]
[1728794615866,0.00082,62921.0,62920.0,0.60593618]
[1728794620787,0.00082,62921.0,62920.0,0.59693618]
[1728794621211,0.00082,62921.0,62920.0,0.60993618]
[1728794622280,0.18162,62921.0,62920.0,0.59993618]
[1728794622725,0.18162,62921.0,62920.0,0.61393618]
[1728794622954,0.18162,62921.0,62920.0,0.60093618]
[1728794623175,0.18162,62921.0,62920.0,0.61393618]
[1728794627579,0.18162,62921.0,62920.0,0.50202501]
[1728794627827,0.18162,62921.0,62920.0,0.61393618]
[1728794632121,0.00082,62921.0,62920.0,0.69884735]
[1728794632349,0.00082,62921.0,62920.0,0.72584735]
[1728794632807,0.00082,62921.0,62920.0,0.72684735]
[1728794633260,0.00082,62921.0,62920.0,0.74084735]
[1728794633722,0.00082,62921.0,62920.0,0.72684735]
[1728794634426,0.00082,62921.0,62920.0,0.74084735]
[1728794636510,0.00082,62921.0,62920.0,0.79030037]
[1728794644738,0.00082,62921.0,62920.0,0.97210037]
[1728794648489,0.00082,62921.0,62920.0,0.95810037]
[1728794648692,0.00082,62921.0,62920.0,0.94410037]
[1728794649127,0.00082,62921.0,62920.0,0.93010037]
[1728794649560,0.00082,62921.0,62920.0,0.95810037]
[1728794653273,0.00082,62921.0,62920.0,1.07001154]
[1728794653501,0.92987607,62925.0,62924.0,0.51461334]
[1728794653726,0.92987607,62925.0,62924.0,0.74831753]
[1728794655265,0.92987607,62925.0,62924.0,0.77631753]
[1728794656729,0.91376607,62925.0,62924.0,0.77631753]
[1728794657813,0.91376607,62929.0,62926.0,0.03187]
[1728794658021,0.91376607,62929.0,62928.0,0.69882735]
[1728794659288,0.91376607,62929.0,62928.0,0.71282735]
[1728794659500,0.91376607,62929.0,62928.0,0.60091618]
[1728794659709,1.11246607,62929.0,62928.0,0.60091618]
[1728794659938,1.11246607,62929.0,62928.0,0.61491618]
[1728794661501,1.11246607,62929.0,62928.0,0.60091618]
[1728794661923,1.11246607,62929.0,62928.0,0.61491618]
[1728794663826,0.1987,62929.0,62928.0,0.61491618]
[1728794665719,0.1987,62929.0,62928.0,0.62396699]
[1728794666781,0.1987,62929.0,62928.0,0.67341136]
[1728794668724,0.199519,62929.0,62928.0,0.67341136]
[1728794680031,0.277119,62929.0,62928.0,0.67341136]
[1728794687916,0.277119,62929.0,62928.0,0.56150019]
[1728794688137,0.277119,62929.0,62928.0,0.67341136]
[1728794694791,0.277119,62929.0,62928.0,0.21836518]
[1728794695007,1.35679407,62929.0,62928.0,0.028]
[1728794695263,1.62831779,62929.0,62928.0,0.028]
[1728794695489,1.53294819,62929.0,62928.0,0.028]
[1728794695712,0.002,62926.0,62925.0,0.00164]
[1728794695925,0.47082037,62926.0,62925.0,0.16286401]
[1728794696361,0.47082037,62926.0,62925.0,0.26286401]
[1728794696573,0.423116,62926.0,62925.0,0.26286401]
[1728794697465,0.2622,62926.0,62925.0,0.26286401]
[1728794697678,0.2622,62926.0,62925.0,0.54269418]
[1728794698148,0.28708996,62926.0,62925.0,0.54269418]
[1728794699007,0.28708996,62926.0,62925.0,0.55069418]
[1728794699467,1.20085603,62926.0,62925.0,0.55069418]
[1728794702141,1.17596607,62926.0,62925.0,0.55069418]
[1728794703314,1.17596607,62926.0,62925.0,0.57369418]
[1728794704054,0.000819,62929.0,62928.0,0.158911]
[1728794704314,0.000819,62929.0,62928.0,0.45504618]
[1728794705449,0.000819,62929.0,62928.0,0.46004618]
[1728794705957,0.000819,62929.0,62928.0,0.46604618]
[1728794722044,0.02570767,62929.0,62928.0,0.46604618]
[1728794727954,0.000819,62929.0,62928.0,0.46604618]
[1728794729064,0.281019,62929.0,62928.0,0.33113501]
[1728794729482,0.281019,62929.0,62928.0,0.17222401]
[1728794729697,0.281019,62929.0,62928.0,0.44304618]
[1728794731247,0.30590747,62929.0,62928.0,0.44304618]
[1728794731932,1.21967354,62929.0,62928.0,0.44304618]
[1728794747377,1.26736262,62929.0,62928.0,0.44304618]
[1728794758700,1.24247415,62929.0,62928.0,0.44304618]
[1728794759508,1.24252358,62929.0,62928.0,0.44304618]
[1728794759715,1.24252358,62929.0,62928.0,0.47492618]
[1728794760631,1.24252358,62929.0,62928.0,0.46892618]
[1728794760879,1.24252358,62929.0,62928.0,0.46392618]
[1728794761103,1.24252358,62929.0,62928.0,0.47392618]
[1728794761328,0.91458507,62929.0,62928.0,0.59692618]
[1728794761550,0.000819,62929.0,62928.0,0.65850266]
[1728794762428,0.000819,62929.0,62928.0,0.64850266]
[1728794762636,0.000819,62929.0,62928.0,0.66150266]
[1728794763506,0.000819,62929.0,62928.0,0.64850266]
[1728794763717,0.000819,62929.0,62928.0,0.61192618]
[1728794763928,0.000819,62929.0,62928.0,0.64947417]
[1728794764142,0.000819,62929.0,62928.0,0.63647417]
[1728794764392,0.000819,62929.0,62928.0,0.59892618]
[1728794764611,0.000819,62929.0,62928.0,0.64847314]
[1728794764824,0.000819,62929.0,62928.0,0.63647314]
[1728794765034,0.000819,62929.0,62928.0,0.65047314]
[1728794765473,0.0257064,62929.0,62928.0,0.66447314]
[1728794766788,0.0257064,62929.0,62928.0,0.61492618]
[1728794768094,0.000819,62929.0,62928.0,0.61492618]
[1728794775644,0.02570658,62929.0,62928.0,0.61492618]
[1728794778016,0.000819,62929.0,62928.0,0.61492618]
[1728794782598,0.02570655,62929.0,62928.0,0.61492618]
[1728794782912,0.000819,62929.0,62928.0,0.61492618]
[1728794786363,0.0257065,62929.0,62928.0,0.61492618]
[1728794788069,0.000819,62929.0,62928.0,0.61492618]
[1728794788291,0.00057861,62929.0,62928.0,0.61492618]
[1728794788511,0.00057861,62929.0,62928.0,0.66448992]
[1728794791340,0.02546612,62929.0,62928.0,0.66448992]
[1728794791548,0.00057861,62929.0,62928.0,0.66448992]
[1728794795993,0.0254661,62929.0,62928.0,0.66448992]
[1728794797976,0.00057861,62929.0,62928.0,0.66448992]
[1728794799698,0.00057861,62929.0,62928.0,0.65048992]
[1728794800128,0.00057861,62929.0,62928.0,0.66448992]
[1728794800358,0.00057861,62929.0,62928.0,0.63648992]
[1728794800571,0.00057861,62929.0,62928.0,0.65048992]
[1728794801005,0.00057861,62929.0,62928.0,0.63648992]
[1728794801417,0.00057861,62929.0,62928.0,0.65048992]
[1728794801418,0.02546582,62929.0,62928.0,0.65048992]
[1728794802074,0.00057861,62929.0,62928.0,0.65048992]
[1728794802303,0.00057861,62929.0,62928.0,0.66448992]
[1728794802517,0.00057861,62929.0,62928.0,0.65048992]
[1728794802728,0.00057861,62929.0,62928.0,0.63648992]
[1728794802954,0.00057861,62929.0,62928.0,0.65048992]
[1728794803159,0.00057861,62929.0,62928.0,0.66448992]
[1728794803574,0.00057861,62929.0,62928.0,0.65048992]
[1728794803777,0.00057861,62929.0,62928.0,0.66448992]
[1728794806531,0.02546585,62929.0,62928.0,0.66448992]
[1728794806778,0.02546585,62929.0,62928.0,0.66612992]
[1728794806986,0.00057861,62929.0,62928.0,0.66612992]
[1728794808285,0.91376607,62930.0,62929.0,0.313789]
[1728794808510,0.91376607,62930.0,62929.0,0.52457675]
[1728794808957,0.91376607,62930.0,62929.0,0.63648792]
[1728794809166,0.00082,62932.0,62931.0,0.313784]
[1728794809387,0.00082,62932.0,62931.0,0.63648292]
[1728794811439,0.00082,62932.0,62931.0,0.65048292]
[1728794812082,0.00082,62932.0,62931.0,0.66448292]
[1728794814880,0.00082,62932.0,62931.0,0.68035444]
[1728794815268,0.00082,62932.0,62931.0,0.68925527]
[1728794815723,0.0257057,62932.0,62931.0,0.68925527]
[1728794816869,0.00082,62932.0,62931.0,0.68925527]
[1728794829253,0.00082,62932.0,62931.0,0.68945827]
[1728794830891,0.00082,62932.0,62931.0,0.73699362]
[1728794831412,0.00082,62932.0,62931.0,0.93418051]
[1728794831642,0.23854393,62940.0,62939.0,0.53758534]
[1728794831643,0.21073192,62940.0,62939.0,0.53758534]
[1728794831876,1.12449799,62940.0,62939.0,0.58689818]
[1728794832089,0.91376607,62940.0,62939.0,0.58689818]
[1728794833116,0.91376607,62940.0,62939.0,0.59989818]
[1728794833552,0.91376607,62940.0,62939.0,0.61189818]
[1728794835661,0.91376607,62943.0,62941.0,0.03188]
[1728794835902,0.91376607,62943.0,62942.0,0.58689118]
[1728794837157,0.91376607,62943.0,62942.0,0.59689118]
[1728794837804,0.91376607,62943.0,62942.0,0.60589118]
[1728794838399,1.17536607,62943.0,62942.0,0.60589118]
[1728794839949,0.79660442,62952.0,62951.0,0.190733]
[1728794840147,0.79660442,62952.0,62951.0,0.58686818]
[1728794842314,0.79660442,62952.0,62951.0,0.60086818]
[1728794842730,0.79660442,62952.0,62951.0,0.61486818]
[1728794843152,0.79742442,62952.0,62951.0,0.61486818]
[1728794843358,0.79742442,62952.0,62951.0,0.62407106]
[1728794844190,0.98032442,62952.0,62951.0,0.62407106]
[1728794844603,0.18372,62952.0,62951.0,0.62407106]
[1728794844807,0.18372,62952.0,62951.0,0.64024547]
[1728794850718,0.26392,62952.0,62951.0,0.64024547]
[1728794853311,0.26392,62952.0,62951.0,0.5053343]
[1728794858420,0.26592,62952.0,62951.0,0.5053343]
[1728794858649,0.26392,62952.0,62951.0,0.5053343]
[1728794863371,0.26392,62952.0,62951.0,0.33727842]
[1728794863580,0.26592,62952.0,62951.0,0.33727842]
[1728794864216,0.26592,62952.0,62951.0,0.32327842]
[1728794864434,0.26592,62952.0,62951.0,0.33727842]
[1728794864636,0.26592,62952.0,62951.0,0.49613142]
[1728794865313,0.29080048,62952.0,62951.0,0.48213142]
[1728794865804,0.29080048,62952.0,62951.0,0.49613142]
[1728794866005,0.29080048,62952.0,62951.0,0.48213142]
[1728794866211,0.29080048,62952.0,62951.0,0.46813142]
[1728794866416,0.29080048,62952.0,62951.0,0.48213142]
[1728794866623,0.29080048,62952.0,62951.0,0.49513142]
[1728794867225,0.29080048,62952.0,62951.0,0.49676942]
[1728794867859,1.0924049,62952.0,62951.0,0.23791642]
[1728794868075,1.0924049,62952.0,62951.0,0.028638]
[1728794868076,1.33828659,62952.0,62951.0,0.028638]
[1728794868708,1.3858197,62952.0,62951.0,0.028638]
[1728794869300,1.22637542,62952.0,62951.0,0.028638]